Cogmind - Beta 13 @@@ ROGUE MODE // 2024.06.19 @ 11:37:36 Player: Rune Result: Destroyed by G-47 Trooper with Particle Gun Performance ------------- Evolutions (2) 1000 Regions Visited (5) 1000 Robots Destroyed (40) 200 Value Destroyed (1024) 1024 Prototype IDs (1) 20 Alien Tech Used (0) 0 Bonus (-15) -15 TOTAL SCORE: 3229 Bonus ------- High Alert Combat Kills 18 Friendly Fire -33 Cogmind --------- Core Integrity 0/550 Matter 105/300 Energy 99/100 System Corruption 0% Temperature Cool (9) Movement Core (100) Ox1 Location -8/Materials Parts ------- > --- POWER (1) -------- (None) > --- PROPULSION (3) --- (None) > --- UTILITY (3) ------ Improved Targeting Computer > --- WEAPON (4) ------- Great Maul > --- INVENTORY (5) ---- Backup Propulsion I High-capacity Storage Unit Medium Matter Pod (0) Peak State ------------ > --- POWER ------------ Ion Engine > --- PROPULSION ------- Aluminum Leg Aluminum Leg > --- UTILITY ---------- Small Storage Unit Thief Drone Bay > --- WEAPON ----------- Beam Cannon Heavy Assault Rifle Mini Grenade Launcher > --- INVENTORY -------- Heat Sink High-capacity Storage Unit Structural Scanner Improved Targeting Computer Medium Laser [Rating: 16] Favorites ----------- Power Light Ion Engine Engine Light Ion Engine Propulsion Aluminum Leg Leg Aluminum Leg Utility Small Storage Unit Device Thief Drone Bay Storage Small Storage Unit Processor Improved Targeting Computer Weapon Beam Cannon Energy Gun Medium Laser Energy Cannon Beam Cannon Ballistic Gun Heavy Assault Rifle Launcher Mini Grenade Launcher Impact Weapon Great Maul Build | -11 -10 -10 -9 -9 -8 ------- Run | Yrd Mat Min Mat Min Mat Slots Evolved 4 | . . . 2 . 2 Power . | . . . . . . Propulsion 1 | . . . 1 . . Utility 1 | . . . . . 1 Weapon 2 | . . . 1 . 1 Parts Attached 27 | 6 4 4 3 4 6 Power 3 | 1 . 1 . 1 . Engine 3 | 1 . 1 . 1 . Core . | . . . . . . Reactor . | . . . . . . Propulsion 5 | 2 . 1 . 2 . Treads . | . . . . . . Leg 5 | 2 . 1 . 2 . Wheel . | . . . . . . Hover . | . . . . . . Flight . | . . . . . . Utility 5 | 1 . 1 . . 3 Device 3 | . . 1 . . 2 Storage 1 | 1 . . . . . Processor 1 | . . . . . 1 Hackware . | . . . . . . Protection . | . . . . . . Artifact . | . . . . . . Weapon 14 | 2 4 1 3 1 3 Energy Gun 7 | 1 3 1 . . 2 Energy Cannon 1 | . . . 1 . . Ballistic Gun 2 | 1 . . . 1 . Ballistic Cannon . | . . . . . . Launcher 3 | . 1 . 2 . . Special Weapon . | . . . . . . Impact Weapon 1 | . . . . . 1 Slashing Weapon . | . . . . . . Piercing Weapon . | . . . . . . Special Melee Weapon . | . . . . . . Unidentified Prototypes 1 | . . 1 . . . Parts Lost 21 | . 5 . 1 5 10 Power 3 | . 1 . 1 1 . Propulsion 5 | . 1 . . 2 2 Utility 4 | . . . . 1 3 Weapon 9 | . 3 . . 1 5 Highest Loss Streak 10 | . 4 . 1 3 10 To Critical Strikes . | . . . . . . Average Slot Usage (%) 74 | . 77 80 81 66 70 Engine 5 | . 12 14 5 1 . Leg 18 | . 26 28 22 11 14 Device 7 | . . 1 11 10 9 Storage 11 | . 14 14 11 11 7 Processor 1 | . . . . . 9 Energy Gun 7 | . 9 22 8 . 7 Energy Cannon 7 | . . . 10 11 7 Ballistic Gun 5 | . 13 . . 6 6 Launcher 9 | . . . 13 14 7 Naked Turns . | . . . . . . Heaviest Build 21 | 12 13 15 19 21 15 Greatest Support 20 | 20 20 20 20 20 20 Greatest Overweight (x) 5 | 2 . . . 5 2 Average Overweight (x) . | . . . . 1 . Largest Inventory Capacity 8 | 8 8 8 8 8 8 Average Capacity 7 | 7 8 8 8 8 7 Most Carried 8 | 2 4 5 8 7 6 Average Carried 4 | . 2 1 6 5 3 Final Capacity 8 | 8 8 8 8 8 5 Final Carried 7 | 1 2 4 7 5 3 Class Distribution -------------------- 41% | Gunner 38% | Mutant 11% | Scavenger-Gunner 8% | Bomber Dominant Class ---------------- Mutant | -10/Materials Mutant | -10/Mines Gunner | -9/Materials Gunner | -9/Mines Scavenger-Gunner | -8/Materials Resources | -11 -10 -10 -9 -9 -8 ----------- Run | Yrd Mat Min Mat Min Mat Matter Collected 713 | 110 58 115 244 145 41 Remotely . | . . . . . . Salvage Created 891 | . 93 . 413 129 256 Parts 53 | . 2 . 32 8 11 Haulers Intercepted . | . . . . . . Recyclers Shooed 1 | . . . 1 . . Parts Field Recycled . | . . . . . . Retrieved Matter . | . . . . . . Parts Self-Destructed . | . . . . . . Prevented . | . . . . . . Kills | -11 -10 -10 -9 -9 -8 ------- Run | Yrd Mat Min Mat Min Mat Combat Hostiles Destroyed 33 | . 3 . 11 11 8 Melee 2 | . . . . . 2 Guns 4 | . 2 . 1 1 . Cannons 5 | . . . 2 3 . AOE 20 | . 1 . 7 7 5 Classes Destroyed 10 | . 1 . 7 2 . Worker 6 | . . . 3 2 1 Builder 3 | . . . 2 . 1 Tunneler 2 | . . . . 2 . Recycler 3 | . . . 1 1 1 Mechanic 1 | . . . 1 . . Watcher 3 | . . . 2 . 1 Swarmer 4 | . . . 2 . 2 Grunt 16 | . 3 . 7 . 6 Sentry 2 | . . . 2 . . Assembled 11 | . . . . 11 . Best Kill Streak 9 | . 1 . 9 9 9 Combat Bots Only 5 | . 1 . 5 4 5 Max Kills in Single Turn 3 | . 1 . 3 3 3 Gunslinging . | . . . . . . Exploded 2 | . 1 . 2 2 2 Melee 1 | . . . . . 1 Uniques/NPCs Destroyed . | . . . . . . Combat | -11 -10 -10 -9 -9 -8 -------- Run | Yrd Mat Min Mat Min Mat Hostile Shots Fired 318 | . 75 1 40 68 134 Missed 106 | . 31 1 15 19 40 Damage Taken 2749 | . 648 . 291 714 1096 Core 906 | . 166 . 57 123 560 Absorbed by Shields . | . . . . . . Core Remaining (%) 62 | 100 . 33 . 55 . Volleys Fired 67 | . 18 . 17 21 11 Largest 4 | . 2 . 3 3 4 Hottest 163 | . 85 . 130 120 163 Shots Fired 149 | . 30 . 45 56 18 Gun 61 | . 28 . 13 11 9 Cannon 40 | . . . 17 21 2 Launcher 48 | . 2 . 15 24 7 Special . | . . . . . . Kinetic 30 | . 18 . . 11 1 Thermal 71 | . 10 . 30 21 10 Explosive 48 | . 2 . 15 24 7 Electromagnetic . | . . . . . . Robot Hit Streak 22 | . 22 . 12 4 2 Robot Miss Streak 4 | . 1 . 3 2 4 Penetration Max . | . . . . . . Secondary Targets . | . . . . . . Shots Hit Robots 62 | . 25 . 15 14 8 Core Hits 97 | . 7 . 33 34 23 Critical Kills 1 | . . . 1 . . Critical Parts Destroyed 2 | . . . . . 2 Critical Strikes 4 | . 1 . 1 . 2 Burn 1 | . 1 . . . . Meltdown 1 | . . . 1 . . Smash 2 | . . . . . 2 Melee Attacks 5 | . . . . . 5 Impact 5 | . . . . . 5 Slashing . | . . . . . . Piercing . | . . . . . . Sneak Attacks . | . . . . . . Combat Hostiles . | . . . . . . Follow-up Attacks . | . . . . . . Damage Inflicted 3653 | . 341 . 1383 996 933 Guns 445 | . 270 . 67 70 38 Cannons 263 | . . . 157 106 . Explosions 2754 | . 60 . 1159 816 719 Melee 169 | . . . . . 169 Ramming 22 | . 11 . . 4 7 Kinetic 232 | . 162 . . 70 . Thermal 476 | . 108 . 224 106 38 Explosive 2754 | . 60 . 1159 816 719 Electromagnetic . | . . . . . . Impact 169 | . . . . . 169 Slashing . | . . . . . . Piercing . | . . . . . . Highest Corruption . | . . . . . . Average Corruption . | . . . . . . Corruption Purged . | . . . . . . Corruption Blocked . | . . . . . . Overload Shots . | . . . . . . Overflow Damage 192 | . 12 . 50 13 117 Projectiles . | . . . . . . Explosions 75 | . 12 . 50 13 . Melee 117 | . . . . . 117 Knockbacks 1 | . . . . . 1 Impact 1 | . . . . . 1 Kinetic . | . . . . . . Secondary . | . . . . . . Self-Inflicted Damage 274 | . 72 . 57 82 63 Shots 9 | . 1 . 2 4 2 Rammed . | . . . . . . Targets Rammed 8 | . 5 . . 1 2 Kicked 8 | . 5 . . 1 2 Crushed . | . . . . . . Highest Temperature 278 | . 79 . 278 126 180 Average Temperature 63 | . 24 . 87 46 115 Received Heat Transfer 883 | . 321 . 27 220 315 Siege Activations . | . . . . . . Robots Corrupted . | . . . . . . Combat Hostiles . | . . . . . . Parts Fried 1 | . . . . . 1 Impact Corruptions 5 | . . . . . 5 Robots Melted 1 | . . . 1 . . Combat Hostiles 1 | . . . 1 . . Parts Melted 2 | . . . 2 . . Heat Transferred 1223 | . 370 . 483 222 148 Parts Sabotaged . | . . . . . . Parts Stolen . | . . . . . . Parts Stripped . | . . . . . . Power Chain Reactions . | . . . . . . Alert | -11 -10 -10 -9 -9 -8 ------- Run | Yrd Mat Min Mat Min Mat Peak Influence 542 | . 88 26 542 323 256 Initial 211 | . . 26 9 211 47 Average 163 | . 54 26 275 269 85 Maximum Alert Level 2 | . . . 2 1 1 Low Security (%) 56 | 100 100 100 42 1 81 Level 1 35 | . . . 18 98 18 Level 2 8 | . . . 38 . . Level 3 . | . . . . . . Level 4 . | . . . . . . Level 5 . | . . . . . . High Security . | . . . . . . Max Security . | . . . . . . Squads Dispatched 3 | . . . 2 . 1 Investigation . | . . . . . . Extermination . | . . . . . . Reinforcement 3 | . . . 2 . 1 Assault . | . . . . . . Garrison . | . . . . . . Intercept . | . . . . . . Searches Triggered . | . . . . . . Construction Impeded 2 | . . . 1 . 1 Haulers Reinforced . | . . . . . . Active Scanning Responses . | . . . . . . Cargo Convoy Interrupts . | . . . . . . Stealth | -11 -10 -10 -9 -9 -8 --------- Run | Yrd Mat Min Mat Min Mat Distress Signals 6 | . . . 2 2 2 Communications Jammed . | . . . . . . Distress Signals . | . . . . . . Times Spotted 50 | . 7 2 13 14 14 Peak Tracking Total 10 | . 4 2 6 4 10 Tactical Retreats 2 | . . . . 2 . Traps | -11 -10 -10 -9 -9 -8 ------- Run | Yrd Mat Min Mat Min Mat Traps Triggered . | . . . . . . Indirectly . | . . . . . . Trap Hack Attempts . | . . . . . . Triggered . | . . . . . . Disarmed . | . . . . . . Reprogrammed . | . . . . . . Reused . | . . . . . . Traps Extracted . | . . . . . . Installed . | . . . . . . Triggered . | . . . . . . Machines | -11 -10 -10 -9 -9 -8 ---------- Run | Yrd Mat Min Mat Min Mat Machines Disabled 12 | . 2 . 6 . 4 Max in Single Turn 2 | . 1 . 2 . 1 Machines Repaired . | . . . . . . Machines Dismantled . | . . . . . . Machines Sabotaged . | . . . . . . Overloaded Fab Kills . | . . . . . . Hacking | -11 -10 -10 -9 -9 -8 --------- Run | Yrd Mat Min Mat Min Mat Machines Accessed 2 | . 1 1 . . . Terminals 1 | . 1 . . . . Fabricators . | . . . . . . Repair Stations . | . . . . . . Recycling Units . | . . . . . . Scanalyzers . | . . . . . . Garrison Access . | . . . . . . Total Hacks 4 | . 3 1 . . . Successful 1 | . . 1 . . . Failed 3 | . 3 . . . . Catastrophic . | . . . . . . Database Lockouts . | . . . . . . Manual . | . . . . . . Terminals 3 | . 3 . . . . Fabricators . | . . . . . . Repair Stations . | . . . . . . Recycling Units . | . . . . . . Scanalyzers . | . . . . . . Garrison Access . | . . . . . . Terminal Hacks 1 | . . 1 . . . Open Door 1 | . . 1 . . . Fabricator Hacks . | . . . . . . Repair Station Hacks . | . . . . . . Recycling Unit Hacks . | . . . . . . Scanalyzer . | . . . . . . Garrison Access Hacks . | . . . . . . Unauthorized Hacks . | . . . . . . Terminals . | . . . . . . Fabricators . | . . . . . . Repair Stations . | . . . . . . Recycling Units . | . . . . . . Scanalyzers . | . . . . . . Garrison Access . | . . . . . . Data Cores Recovered . | . . . . . . Used . | . . . . . . Hacking Detections 1 | . 1 . . . . Full Trace Events 1 | . 1 . . . . Feedback Events . | . . . . . . Feedback Blocked . | . . . . . . Robot Schematics Acquired . | . . . . . . Robots Built . | . . . . . . Authchips . | . . . . . . Time . | . . . . . . Total Robot Build Rating . | . . . . . . Part Schematics Acquired . | . . . . . . Parts Built . | . . . . . . Authchips . | . . . . . . Time . | . . . . . . Total Part Build Rating . | . . . . . . Parts Repaired . | . . . . . . Time . | . . . . . . Parts Recycled . | . . . . . . Recycled Matter . | . . . . . . Retrieved Matter . | . . . . . . Retrieved Components . | . . . . . . Parts Scanalyzed . | . . . . . . Part Schematics Acquired . | . . . . . . Parts Damaged . | . . . . . . Bothacking | -11 -10 -10 -9 -9 -8 ------------ Run | Yrd Mat Min Mat Min Mat Used RIF Installer . | . . . . . . Robots Hacked . | . . . . . . Non-combat . | . . . . . . Combat . | . . . . . . Robot Hacks Applied . | . . . . . . Relay Couplers Released . | . . . . . . Fabnet Peak Effective % . | . . . . . . Robots Rewired . | . . . . . . Allies Hacked . | . . . . . . Hacks Repelled . | . . . . . . Allies | -11 -10 -10 -9 -9 -8 -------- Run | Yrd Mat Min Mat Min Mat Total Allies 1 | . . . . 1 . Largest Group 1 | . . . . 1 . Highest-Rated Group 31 | . . . . 31 . Highest-Rated Ally 31 | . . . . 31 . Total Orders . | . . . . . . Ally Attacks 6 | . . . . 6 . Total Damage 61 | . . . . 61 . Kills 1 | . . . . 1 . Allies Corrupted . | . . . . . . Allies Melted . | . . . . . . Intel | -11 -10 -10 -9 -9 -8 ------- Run | Yrd Mat Min Mat Min Mat Robot Analysis Total . | . . . . . . Derelict Logs Recovered 1 | . . . . 1 . Drone Launches . | . . . . . . Drone Recoveries . | . . . . . . Exploration | -11 -10 -10 -9 -9 -8 ------------- Run | Yrd Mat Min Mat Min Mat Turns Passed 1416 | 87 235 144 311 407 232 Spaces Moved 850 | 62 137 112 209 182 148 Core 72 | 10 . . . 49 13 Treads . | . . . . . . Legs 778 | 52 137 112 209 133 135 Wheels . | . . . . . . Hover . | . . . . . . Flight . | . . . . . . Fastest Speed 50 | 50 120 120 120 120 100 Average Speed 131 | 118 120 120 120 172 119 Slowest Speed 300 | 150 120 120 120 300 150 Overloaded Moves . | . . . . . . Propulsion Burnouts . | . . . . . . Robots Hopped . | . . . . . . Cave-ins Triggered . | . . . . . . Exploration Rate (%) 26 | 4 31 26 28 46 22 Regions Visited 5 Branch Regions 2 Pre-discovered Areas 1 | . . . . 1 . Known Exits Taken . | . . . . . . Unknown Exits Taken 5 | 1 1 1 1 1 . Scrap Searched 1 | . . 1 . . . Spaces Dug 13 | . . . . 13 . Terrain Destroyed 340 | . 18 . 106 195 21 Melee . | . . . . . . Projectile . | . . . . . . AOE 340 | . 18 . 106 195 21 Terrain Rammed . | . . . . . . Walls Destroyed . | . . . . . . Machines Disabled . | . . . . . . Actions | -11 -10 -10 -9 -9 -8 --------- Run | Yrd Mat Min Mat Min Mat Total 1017 | 76 177 121 235 231 177 Wait 32 | . 9 . . 22 1 Move 845 | 61 136 111 208 181 148 Hop . | . . . . . . Pick Up 28 | 8 3 6 5 2 4 Fast Attach . | . . . . . . Attach 27 | 6 4 4 3 4 6 Detach 3 | . 2 . 1 . . Swap . | . . . . . . Drop 2 | 1 . . 1 . . Fire 67 | . 18 . 17 21 11 Melee 5 | . . . . . 5 Ram . | . . . . . . Kick 8 | . 5 . . 1 2 Crush . | . . . . . . Escape Stasis . | . . . . . . Rewire . | . . . . . . Trap . | . . . . . . Miscellaneous . | . . . . . . Route ------- -11/Scrapyard -10/Materials (discovered 2 exits: *Mat / *Min) -10/Mines -9/Materials -9/Mines (discovered 2 exits: *Mat / [*Zio]) -8/Materials (discovered 2 exits: [*Fac] / [*Sto]) History --------- Turn | Location | Event 40 | -11/Scrapyard | Discovered new exit (range 16) 88 | -11/Scrapyard | Entered Materials 243 | -10/Materials | Discovered new exit (range 9) 283 | -10/Materials | Discovered new exit (range 6) 312 | -10/Materials | Core integrity fell below 50% 323 | -10/Materials | Entered Mines 330 | -10/Mines | Met a Derelict bent on vengeance 349 | -10/Mines | Build established: Mutant 349 | -10/Mines | Lost 4 parts (1p1n2w) 427 | -10/Mines | Discovered new exit (range 9) 437 | -10/Mines | Found the Drone Emporium 451 | -10/Mines | Found Prototype Device 458 | -10/Mines | Identified Thief Drone Bay 467 | -10/Mines | Entered Materials 467 | -9/Materials | Evolved 2 slots: Propulsion x1, Weapon x1 638 | -9/Materials | Discovered new exit (range 15) 778 | -9/Materials | Entered Mines 781 | -9/Mines | Received a Mining Laser from a helpful Derelict 796 | -9/Mines | Build established: Gunner 824 | -9/Mines | A Derelict revealed a hidden shortcut to a safe place 830 | -9/Mines | Assembled infested the area 1004 | -9/Mines | Lost 3 parts (1p2n) 1060 | -9/Mines | Found a damaged Exp. Sensor Array with a note attached 1173 | -9/Mines | Discovered new exit (range 11) 1185 | -9/Mines | Entered Materials 1185 | -8/Materials | Evolved 2 slots: Utility x1, Weapon x1 1309 | -8/Materials | Discovered new exit (range 5) 1373 | -8/Materials | Discovered new exit (range 7) 1374 | -8/Materials | Core integrity fell below 50% 1394 | -8/Materials | Core integrity fell below 20% 1417 | -8/Materials | Destroyed by G-47 Trooper with Particle Gun Last Messages --------------- U-05 Engineer lays Concrete. U-05 Engineer builds a Wall. U-05 Engineer lays Concrete. Acquired 10 matter. U-05 Engineer lays Concrete. The unstable cave ceiling collapses. W-25 Informer sends out distress signal. U-05 Engineer lays Concrete. S-10 Pest suffers critical hit (Smash). Destroyed Lgt. Assault Rifle. Destroyed Lgt. Ion Engine. S-10 Pest system corrupted by crushing effect. S-10 Pest destroyed. U-05 Engineer lays Concrete. M-13 Machinist repairs U-05 Engineer. U-05 Engineer lays Concrete. Acquired 1 matter. M-13 Machinist repairs U-05 Engineer. U-05 Engineer lays Concrete. Map ----- +----------------------------------------------------+ | ??????????????????????????????????????????? | | ??????????????????????????????????????????? | | ??????????????????????????????????????????? | | ??????????????????????????????????????????? | | ??????????????????????????????????????????? | | ??????????????????????????????????????????? | | ??????????????????????????????????????????? | | ??????????????????????????????????????????? | | ??????????????????????????????????????????? | | ??????????????????????????????????????????? | | ??????????????????? ????????????????????? | | ??????????????????? ??????????????????? | | ??????????????????? ???????????????? | | ????????????????? + ?????????????? | | ????????????????? # ?????????????? | | ????????????????? # g ??????????????? | | ????????????????? # ? ##??????????? | | ######### ??????? # ? ##??????????? | | ##########???????## """ ##??????????? | | ## =##???????"" w """ ##??????????? | | ?? """ ##????????T """ ##??????????? | | ???""" ##???####"" ##??????????? | | ???""" ??######### ##??????????? | | ???? ???##### # " ##??????????? | | ?# #### """ ##??????????? | | ?####+###### "R ! @ % ##??????????? | | ?## #### "* # ##??????????? | | ?## #### = ##??????????? | | ?## + # s % " ##??????????? | | ?## #### [% u " ##??????????? | | ?## ######### * um ##??????????? | | ?#### ######### ????????? | | ?#### ####???## < != ??????? | | ??### ######### =% ??????? | | ??## #############+## #########??????? | | ??## + """ ##########??????? | | ??## ######### """ ####????????????? | | ??### ########## """ " ####????????????? | | ??### ########## + ##????????????? | | ???## ########## ## ##????????????? | | ???## + ## ##????????????? | | ???## ######## ## ##????????????? | | ???## ##### ## ##????????????? | | ???## < ##?############# ##????????????? | | ???##### ################ ###???????????? | | ???###### #################+###???????????? | | ???????## ## # ##???????????? | | ????????? ## # """ ##???????????? | | ????????? ## + """ ##########??? | | ????????? ## # """ ########### | +----------------------------------------------------+ Best States ------------- Heat Dissipation 41 Energy Generation 10 Energy Capacity 250 Matter Stores 297 Matter Capacity 300 Sight Range 16 Terrain Scan Density 10 Evasion (%) 55 Targeting Accuracy 6 Item Schematics ----------------- None Robot Schematics ------------------ None Fabricated ------------ Nothing Alien Tech Used ----------------- None Achievements -------------- I Survived The Infestation Remodeling Challenges ------------ None Game ------ Seed TargetingCompositePropulsion Manual? 0 Play Time 00:18:46 Cumulative 9.4 hours Start 2024.06.19 @ 11:21:09 End 2024.06.19 @ 11:37:36 Sessions 1 Manual Loads 0 Difficulty Rogue Special Mode None Game No. 26 Rogue 26 Adventurer 0 Explorer 0 Win Type - Total 0 Types 0/0/0/0/0/0/0/0/0 Lore% 2 Gallery% 13 Achievement% 11 Wizard Run 0 Options --------- Layout 1 ASCII 0 Keyboard 1 Movement Numpad Keybinds 0 Fullscreen 1 Font 32/SmallcapsGlow Map View 50x35 Zoom Use 0% Tactical HUD 0 Map Filters NONE Filters NONE Steam 0 RUN: 2002b5e6-dc43-40f3-b5be-bb25a5ef9553